fUST/lending_fUST_20250221
["ID","MTS","AMOUNT","RATE_DAILY","PERIOD"]
[353903882,1740123041054,-760.55,0.00013698,2]
[353903883,1740123041064,-503.98778979,0.00013698,2]
[353903884,1740123041076,-522.2,0.00013698,2]
[353903885,1740123041086,-588.78129164,0.00013698,2]
[353903886,1740123041097,-993.79,0.00013698,2]
[353903887,1740123041108,-2007.46,0.00013698,2]
[353903888,1740123041118,-510.55,0.00013698,2]
[353903889,1740123041129,-501.64775392,0.00013698,2]
[353903890,1740123041140,-613.34,0.00013698,2]
[353903891,1740123041150,-682.97,0.00013698,2]
[353903892,1740123041159,-500.0,0.00013698,2]
[353903893,1740123041168,-1212.87,0.00013698,2]
[353903894,1740123041177,-500.99852982,0.00013698,2]
[353903895,1740123041186,-500.0,0.00013698,2]
[353903896,1740123041195,-502.33269872,0.00013698,2]
[353903897,1740123041204,-857.81,0.00013698,2]
[353903898,1740123041213,-500.0,0.00013698,2]
[353903899,1740123041222,-7942.52,0.00013698,2]
[353903900,1740123041371,-500.0,0.00013698,2]
[353903901,1740123041387,-503.9837237,0.00013698,2]
[353903902,1740123041397,-4070.84,0.00013698,2]
[353903903,1740123041406,-638.34,0.00013698,2]
[353903904,1740123041415,-510.5009767,0.00013698,2]
[353903905,1740123041425,-500.0,0.00013698,2]
[353903906,1740123041434,-1094.39,0.00013698,2]
[353903907,1740123041443,-1821.74,0.00013698,2]
[353903908,1740123041452,-609.12,0.00013698,2]
[353903909,1740123041462,-500.0,0.00013698,2]
[353903910,1740123041471,-500.0,0.00013698,2]
[353903911,1740123041480,-187.9434011,0.00013698,2]
[353903912,1740123041489,-500.0,0.00013698,2]
[353903913,1740123041499,-1203.19,0.00013698,2]
[353903914,1740123041508,-1363.52,0.00013698,2]
[353903915,1740123041517,-500.0,0.00013698,2]
[353903916,1740123041527,-179.76630381,0.00013699,2]
[353903917,1740123041537,-301.114426,0.00013699,2]
[353903918,1740123041547,-1867.368097,0.00013699,2]
[353903919,1740123041557,-355.2534587,0.000137,2]
[353903920,1740123041566,-3000.0,0.00013763,2]
[353903921,1740123041577,-500.86516618,0.00013779,2]
[353903922,1740123041586,-501.55007997,0.0001378,2]
[353903923,1740123041596,-505.77275515,0.0001378,2]
[353903924,1740123041609,-501.46138146,0.0001378,2]
[353903925,1740123041619,-647.7,0.0001378,2]
[353903926,1740123041628,-500.0,0.0001378,2]
[353903927,1740123041638,-500.0,0.0001378,2]
[353903928,1740123041647,-500.0,0.0001378,2]
[353903929,1740123041657,-343.97326887,0.0001378,2]
[353903930,1740123041666,-500.0,0.0001378,2]
[353903931,1740123041675,-1028.09,0.0001378,2]
[353903932,1740123041685,-500.0,0.0001378,2]
[353903933,1740123041695,-500.0,0.0001378,2]
[353903934,1740123041704,-500.0,0.0001378,2]
[353903935,1740123041714,-500.0,0.0001378,2]
[353903936,1740123041723,-500.0,0.0001378,2]
[353903937,1740123041733,-500.0,0.0001378,2]
[353903938,1740123041742,-500.0,0.0001378,2]
[353903939,1740123041752,-500.0,0.0001378,2]
[353903940,1740123041761,-500.0,0.0001378,2]
[353903941,1740123041771,-636.52,0.0001378,2]
[353903942,1740123041780,-500.0,0.0001378,2]
[353903943,1740123041790,-500.0,0.0001378,2]
[353903944,1740123041799,-500.0,0.0001378,2]
[353903945,1740123041808,-500.0,0.0001378,2]
[353903946,1740123041818,-500.0,0.0001378,2]
[353903947,1740123041827,-500.0,0.0001378,2]
[353903948,1740123041836,-500.0,0.0001378,2]
[353903949,1740123041845,-500.0,0.0001378,2]
[353903950,1740123041854,-680.57,0.0001378,2]
[353903951,1740123041864,-500.0,0.0001378,2]
[353903952,1740123041874,-500.0,0.0001378,2]
[353903953,1740123041883,-331.96200812,0.0001378,2]
[353903954,1740123041897,-190.57799188,0.0001378,2]
[353903955,1740123041906,-500.0,0.0001378,2]
[353903956,1740123041916,-643.16,0.0001378,2]
[353903957,1740123041925,-500.0,0.0001378,2]
[353903958,1740123041934,-500.0,0.0001378,2]
[353903959,1740123041944,-500.0,0.0001378,2]
[353903960,1740123041953,-500.0,0.0001378,2]
[353903961,1740123041962,-257.04340586,0.0001378,2]
[353903962,1740123041972,-500.0,0.0001378,2]
[353903963,1740123041981,-583.12042637,0.0001378,2]
[353903964,1740123041991,-506.24605091,0.0001378,2]
[353903965,1740123042001,-500.0,0.0001378,2]
[353903966,1740123042011,-504.45646631,0.0001378,2]
[353903967,1740123042020,-500.0,0.0001378,2]
[353903968,1740123042030,-500.0,0.0001378,2]
[353903969,1740123042040,-500.0,0.0001378,2]
[353903970,1740123042050,-500.0,0.0001378,2]
[353903971,1740123042059,-502.73680723,0.0001378,2]
[353903972,1740123042069,-500.0,0.0001378,2]
[353903973,1740123042078,-500.0,0.0001378,2]
[353903974,1740123042088,-500.0,0.0001378,2]
[353903975,1740123042097,-500.0,0.0001378,2]
[353903976,1740123042106,-500.0,0.0001378,2]
[353903977,1740123042115,-500.0,0.0001378,2]
[353903978,1740123042125,-500.0,0.0001378,2]
[353903979,1740123042134,-500.0,0.0001378,2]
[353903980,1740123042143,-500.0,0.0001378,2]
[353903981,1740123042153,-500.0,0.0001378,2]
[353903982,1740123042162,-500.0,0.0001378,2]
[353903983,1740123042171,-500.0,0.0001378,2]
[353903984,1740123042180,-1131.1,0.0001378,2]
[353903985,1740123042190,-1943.31,0.0001378,2]
[353903986,1740123042199,-501.75,0.0001378,2]
[353903987,1740123042208,-500.0,0.0001378,2]
[353903988,1740123042219,-1005.08,0.0001378,2]
[353903989,1740123042228,-4904.72,0.0001378,2]
[353903990,1740123042237,-802.29,0.0001378,2]
[353903991,1740123042246,-500.0,0.0001378,2]
[353903992,1740123042255,-1274.61,0.0001378,2]
[353903993,1740123042264,-167.96,0.0001378,2]
[353903994,1740123042276,-500.0,0.0001378,2]
[353903995,1740123042285,-2303.3,0.0001378,2]
[353903996,1740123042294,-10390.14,0.0001378,2]
[353903997,1740123042304,-500.0,0.0001378,2]
[353903998,1740123042313,-500.0,0.0001378,2]
[353903999,1740123042323,-1449.0,0.0001378,2]
[353904000,1740123042332,-1002.18,0.0001378,2]
[353904001,1740123042342,-1288.56,0.0001378,2]
[353904002,1740123042351,-500.0,0.0001378,2]
[353904003,1740123042361,-2629.44,0.0001378,2]
[353904004,1740123042370,-604.05,0.0001378,2]
[353904005,1740123042380,-2170.77,0.0001378,2]
[353904006,1740123042389,-500.0,0.0001378,2]
[353904007,1740123042398,-500.0,0.0001378,2]
[353904008,1740123042407,-3793.39,0.0001378,2]
[353904009,1740123042417,-504.46757716,0.0001378,2]
[353904010,1740123042426,-500.0,0.0001378,2]
[353904011,1740123042436,-872.74,0.0001378,2]
[353904012,1740123042445,-19427.84,0.0001378,2]
[353904013,1740123042454,-500.0,0.0001378,2]
[353904014,1740123042464,-760.55,0.0001378,2]
[353904015,1740123042473,-993.79,0.0001378,2]
[353904016,1740123042482,-2007.46,0.0001378,2]
[353904017,1740123042492,-510.55,0.0001378,2]
[353904018,1740123042501,-613.34,0.0001378,2]
[353904019,1740123042510,-682.97,0.0001378,2]
[353904020,1740123042520,-500.0,0.0001378,2]
[353904021,1740123042530,-1212.87,0.0001378,2]
[353904022,1740123042539,-857.81,0.0001378,2]
[353904023,1740123042549,-500.0,0.0001378,2]
[353904024,1740123042558,-7942.52,0.0001378,2]
[353904025,1740123042568,-4070.84,0.0001378,2]
[353904026,1740123042577,-638.34,0.0001378,2]
[353904027,1740123042587,-1094.39,0.0001378,2]
[353904028,1740123042596,-1821.74,0.0001378,2]
[353904029,1740123042610,-609.12,0.0001378,2]
[353904030,1740123042619,-357.65815289,0.0001378,2]
[353904031,1740123042629,-1203.19,0.0001378,2]
[353904032,1740123042638,-1363.52,0.0001378,2]
[353904033,1740123042647,-8630.71077294,0.00013844,2]
[353904034,1740123042657,-12200.70891563,0.00013855,2]
[353904035,1740123042667,-500.0,0.00013862,2]
[353904036,1740123042676,-500.0,0.00013862,2]
[353904037,1740123042685,-500.0,0.00013862,2]
[353904038,1740123042695,-350.75746811,0.00013862,2]
[353904039,1740123042704,-460.202981,0.00013862,2]
[353904040,1740123042714,-500.0,0.00013862,2]
[353904041,1740123042723,-500.0,0.00013862,2]
[353904042,1740123042732,-500.0,0.00013862,2]
[353904043,1740123042742,-500.0,0.00013862,2]
[353904044,1740123042751,-500.0,0.00013862,2]
[353904045,1740123042761,-213.48803046,0.00013862,2]
[353904046,1740123042770,-500.0,0.00013862,2]
[353904047,1740123042779,-353.52973595,0.00013862,2]
[353904048,1740123042789,-500.0,0.00013862,2]
[353904049,1740123042799,-500.0,0.00013862,2]
[353904050,1740123042808,-500.0,0.00013862,2]
[353904051,1740123042817,-500.0,0.00013862,2]
[353904052,1740123042827,-636.70956521,0.00013862,2]
[353904053,1740123042836,-208.81104884,0.00013862,2]
[353904054,1740123042846,-500.0,0.00013862,2]
[353904055,1740123042855,-500.0,0.00013862,2]
[353904056,1740123042864,-500.0,0.00013862,2]
[353904057,1740123042873,-282.32860556,0.00013862,2]
[353904058,1740123042882,-500.0,0.00013862,2]
[353904059,1740123042892,-500.0,0.00013862,2]
[353904060,1740123042902,-500.0,0.00013862,2]
[353904061,1740123042911,-500.0,0.00013862,2]
[353904062,1740123042920,-500.0,0.00013862,2]
[353904063,1740123042929,-500.0,0.00013862,2]
[353904064,1740123042938,-500.0,0.00013862,2]
[353904065,1740123042948,-462.77394644,0.00013862,2]
[353904066,1740123042957,-500.0,0.00013862,2]
[353904067,1740123042967,-500.0,0.00013862,2]
[353904068,1740123042976,-500.0,0.00013862,2]
[353904069,1740123042986,-500.0,0.00013862,2]
[353904071,1740123042995,-500.0,0.00013862,2]
[353904072,1740123043006,-500.0,0.00013862,2]
[353904073,1740123043015,-500.0,0.00013862,2]
[353904075,1740123043024,-647.7,0.00013863,2]
[353904077,1740123043033,-500.0,0.00013863,2]
[353904079,1740123043042,-500.0,0.00013863,2]
[353904081,1740123043051,-500.0,0.00013863,2]
[353904083,1740123043061,-500.0,0.00013863,2]
[353904086,1740123043070,-1028.09,0.00013863,2]
[353904087,1740123043079,-500.0,0.00013863,2]
[353904089,1740123043088,-500.0,0.00013863,2]
[353904091,1740123043097,-500.0,0.00013863,2]
[353904092,1740123043106,-500.0,0.00013863,2]
[353904093,1740123043115,-500.0,0.00013863,2]
[353904096,1740123043125,-500.0,0.00013863,2]
[353904098,1740123043134,-500.0,0.00013863,2]
[353904100,1740123043143,-636.52,0.00013863,2]
[353904102,1740123043152,-500.0,0.00013863,2]
[353904103,1740123043161,-500.0,0.00013863,2]
[353904104,1740123043171,-500.0,0.00013863,2]
[353904105,1740123043179,-500.0,0.00013863,2]
[353904106,1740123043189,-500.0,0.00013863,2]
[353904107,1740123043199,-500.0,0.00013863,2]
[353904108,1740123043208,-500.0,0.00013863,2]
[353904109,1740123043217,-500.0,0.00013863,2]
[353904111,1740123043227,-680.57,0.00013863,2]
[353904112,1740123043236,-500.0,0.00013863,2]
[353904113,1740123043245,-561.1665314,0.00013863,2]
[353904114,1740123043255,-522.54,0.00013863,2]
[353904115,1740123043264,-500.0,0.00013863,2]
[353904116,1740123043273,-643.16,0.00013863,2]
[353904117,1740123043283,-500.0,0.00013863,2]
[353904118,1740123043292,-500.0,0.00013863,2]
[353904119,1740123043301,-500.0,0.00013863,2]
[353904120,1740123043310,-500.0,0.00013863,2]
[353904121,1740123043319,-500.0,0.00013863,2]
[353904123,1740123043329,-500.0,0.00013863,2]
[353904124,1740123043339,-500.0,0.00013863,2]
[353904126,1740123043348,-500.0,0.00013863,2]
[353904127,1740123043358,-502.77624857,0.00013863,2]
[353904128,1740123043367,-500.0,0.00013863,2]
[353904129,1740123043376,-500.0,0.00013863,2]
[353904130,1740123043385,-500.0,0.00013863,2]
[353904131,1740123043394,-500.0,0.00013863,2]
[353904132,1740123043403,-500.0,0.00013863,2]
[353904133,1740123043412,-500.0,0.00013863,2]
[353904134,1740123043422,-500.0,0.00013863,2]
[353904135,1740123043431,-500.0,0.00013863,2]
[353904136,1740123043441,-500.0,0.00013863,2]
[353904137,1740123043451,-500.0,0.00013863,2]
[353904138,1740123043460,-500.0,0.00013863,2]
[353904139,1740123043469,-500.0,0.00013863,2]
[353904140,1740123043478,-1131.1,0.00013863,2]
[353904141,1740123043488,-1943.31,0.00013863,2]
[353904142,1740123043497,-501.75,0.00013863,2]
[353904143,1740123043506,-500.0,0.00013863,2]
[353904144,1740123043515,-1005.08,0.00013863,2]
[353904145,1740123043524,-4904.72,0.00013863,2]
[353904146,1740123043533,-802.29,0.00013863,2]
[353904147,1740123043543,-191.65277422,0.00013863,2]
[353904148,1740123043552,-1274.61,0.00013863,2]
[353904151,1740123043561,-500.0,0.00013863,2]
[353904153,1740123043571,-2303.3,0.00013863,2]
[353904155,1740123043580,-10390.14,0.00013863,2]
[353904157,1740123043589,-500.0,0.00013863,2]
[353904159,1740123043601,-592.75929681,0.00013863,2]
[353904161,1740123043612,-1449.0,0.00013863,2]
[353904163,1740123043622,-1002.18,0.00013863,2]
[353904165,1740123043632,-1288.56,0.00013863,2]
[353904167,1740123043642,-500.0,0.00013863,2]
[353904169,1740123043651,-2629.44,0.00013863,2]
[353904171,1740123043660,-604.05,0.00013863,2]
[353904173,1740123043670,-2170.77,0.00013863,2]
[353904175,1740123043680,-500.0,0.00013863,2]
[353904177,1740123043690,-500.0,0.00013863,2]
[353904179,1740123043699,-3793.39,0.00013863,2]
[353904181,1740123043708,-500.0,0.00013863,2]
[353904183,1740123043718,-872.74,0.00013863,2]
[353904185,1740123043727,-19427.84,0.00013863,2]
[353904186,1740123043737,-500.0,0.00013863,2]
[353904187,1740123043746,-760.55,0.00013863,2]
[353904188,1740123043755,-993.79,0.00013863,2]
[353904189,1740123043765,-2007.46,0.00013863,2]
[353904190,1740123043774,-510.55,0.00013863,2]
[353904191,1740123043783,-613.34,0.00013863,2]
[353904192,1740123043792,-682.97,0.00013863,2]
[353904193,1740123043801,-500.0,0.00013863,2]
[353904194,1740123043810,-1212.87,0.00013863,2]
[353904195,1740123043819,-857.81,0.00013863,2]
[353904196,1740123043829,-500.0,0.00013863,2]
[353904197,1740123043838,-7942.52,0.00013863,2]
[353904198,1740123043847,-4070.84,0.00013863,2]
[353904199,1740123043857,-638.34,0.00013863,2]
[353904200,1740123043866,-1094.39,0.00013863,2]
[353904201,1740123043875,-1821.74,0.00013863,2]
[353904202,1740123043884,-609.12,0.00013863,2]
[353904203,1740123043894,-1203.19,0.00013863,2]
[353904204,1740123043903,-1363.52,0.00013863,2]
[353904205,1740123043912,-355.2534587,0.000139,2]
[353904206,1740123043921,-284.36431966,0.00013931,2]
[353904207,1740123043931,-355.2534587,0.00013937,2]
[353904208,1740123043940,-355.2534587,0.00013937,2]
[353904209,1740123043949,-710.37029,0.00013937,2]
[353904210,1740123043958,-355.2534587,0.00013937,2]
[353904211,1740123043968,-355.2534587,0.00013937,2]
[353904212,1740123043978,-355.2534587,0.00013937,2]
[353904213,1740123043987,-355.2534587,0.00013937,2]
[353904214,1740123043997,-342.6995501,0.00013937,2]
[353904215,1740123044006,-355.2534587,0.00013937,2]
[353904216,1740123044015,-647.7,0.00013945,2]
[353904217,1740123044025,-500.0,0.00013945,2]
[353904218,1740123044034,-500.0,0.00013945,2]
[353904219,1740123044043,-500.0,0.00013945,2]
[353904220,1740123044052,-500.0,0.00013945,2]
[353904221,1740123044061,-1028.09,0.00013945,2]
[353904222,1740123044071,-500.0,0.00013945,2]
[353904223,1740123044080,-500.0,0.00013945,2]
[353904224,1740123044090,-500.0,0.00013945,2]
[353904225,1740123044099,-500.0,0.00013945,2]
[353904226,1740123044108,-500.0,0.00013945,2]
[353904227,1740123044118,-500.0,0.00013945,2]
[353904228,1740123044127,-500.0,0.00013945,2]
[353904229,1740123044234,-636.52,0.00013945,2]
[353904230,1740123044243,-500.0,0.00013945,2]
[353904231,1740123044253,-500.0,0.00013945,2]
[353904232,1740123044262,-500.0,0.00013945,2]
[353904233,1740123044272,-500.0,0.00013945,2]
[353904234,1740123044281,-500.0,0.00013945,2]
[353904235,1740123044291,-500.0,0.00013945,2]
[353904236,1740123044300,-500.0,0.00013945,2]
[353904237,1740123044309,-500.0,0.00013945,2]
[353904238,1740123044319,-680.57,0.00013945,2]
[353904239,1740123044329,-500.0,0.00013945,2]
[353904240,1740123044338,-522.54,0.00013945,2]
[353904241,1740123044347,-500.0,0.00013945,2]
[353904242,1740123044358,-643.16,0.00013945,2]
[353904243,1740123044368,-500.0,0.00013945,2]
[353904244,1740123044378,-500.0,0.00013945,2]
[353904245,1740123044388,-500.0,0.00013945,2]
[353904246,1740123044397,-500.0,0.00013945,2]
[353904247,1740123044407,-500.0,0.00013945,2]
[353904248,1740123044417,-500.0,0.00013945,2]
[353904249,1740123044427,-500.0,0.00013945,2]
[353904250,1740123044436,-500.0,0.00013945,2]
[353904251,1740123044446,-500.0,0.00013945,2]
[353904252,1740123044455,-500.0,0.00013945,2]
[353904253,1740123044464,-543.42,0.00013945,2]
[353904254,1740123044474,-500.0,0.00013945,2]
[353904255,1740123044483,-500.0,0.00013945,2]
[353904256,1740123044493,-500.0,0.00013945,2]
[353904257,1740123044502,-500.0,0.00013945,2]
[353904258,1740123044511,-500.0,0.00013945,2]
[353904259,1740123044520,-500.0,0.00013945,2]
[353904260,1740123044530,-500.0,0.00013945,2]
[353904261,1740123044539,-500.0,0.00013945,2]
[353904262,1740123044549,-548.51021941,0.00013945,2]
[353904263,1740123044559,-1131.1,0.00013945,2]
[353904264,1740123044568,-1943.31,0.00013945,2]
[353904265,1740123044578,-501.75,0.00013945,2]
[353904266,1740123044588,-521.20982767,0.00013945,2]
[353904267,1740123044599,-1005.08,0.00013945,2]
[353904268,1740123044611,-4904.72,0.00013945,2]
[353904269,1740123044621,-802.29,0.00013945,2]
[353904270,1740123044630,-1274.61,0.00013945,2]
[353904271,1740123044641,-500.0,0.00013945,2]
[353904272,1740123044650,-2303.3,0.00013945,2]
[353904273,1740123044659,-10390.14,0.00013945,2]
[353904274,1740123044669,-500.0,0.00013945,2]
[353904275,1740123044679,-1449.0,0.00013945,2]
[353904276,1740123044689,-1002.18,0.00013945,2]
[353904277,1740123044698,-1288.56,0.00013945,2]
[353904278,1740123044708,-500.0,0.00013945,2]
[353904279,1740123044718,-2629.44,0.00013945,2]
[353904280,1740123044727,-604.05,0.00013945,2]
[353904281,1740123044737,-2170.77,0.00013945,2]
[353904282,1740123044747,-500.0,0.00013945,2]
[353904283,1740123044756,-500.0,0.00013945,2]
[353904284,1740123044767,-3793.39,0.00013945,2]
[353904285,1740123044776,-593.001473,0.00013945,2]
[353904286,1740123044786,-872.74,0.00013945,2]
[353904287,1740123044796,-19427.84,0.00013945,2]
[353904288,1740123044806,-500.0,0.00013945,2]
[353904289,1740123044816,-760.55,0.00013945,2]
[353904290,1740123044827,-993.79,0.00013945,2]
[353904291,1740123044837,-2007.46,0.00013945,2]
[353904292,1740123044847,-510.55,0.00013945,2]
[353904293,1740123044857,-682.97,0.00013945,2]
[353904294,1740123044866,-613.34,0.00013945,2]
[353904295,1740123044876,-500.0,0.00013945,2]
[353904296,1740123044886,-1212.87,0.00013945,2]
[353904297,1740123044896,-857.81,0.00013945,2]
[353904298,1740123044905,-500.0,0.00013945,2]
[353904299,1740123044915,-7942.52,0.00013945,2]
[353904300,1740123044924,-4070.84,0.00013945,2]
[353904301,1740123044933,-638.34,0.00013945,2]
[353904302,1740123044943,-1094.39,0.00013945,2]
[353904303,1740123044952,-1821.74,0.00013945,2]
[353904304,1740123044961,-609.12,0.00013945,2]
[353904305,1740123044971,-1203.19,0.00013945,2]
[353904306,1740123044979,-1363.52,0.00013945,2]
[353904307,1740123044989,-1002.17246199,0.00013988,2]
[353904308,1740123044998,-160.0,0.00013999,3]
[353904309,1740123045007,-355.2534587,0.00014,2]
[353904310,1740123045017,-355.2534587,0.00014,2]
[353904311,1740123045027,-355.2534587,0.00014,2]
[353904312,1740123045036,-552.71,0.00014,5]
[353904313,1740123045045,-500.0,0.00014014,2]
[353904314,1740123045055,-647.7,0.00014027,2]
[353904315,1740123045064,-500.0,0.00014027,2]
[353904316,1740123045074,-500.0,0.00014027,2]
[353904317,1740123045083,-500.0,0.00014027,2]
[353904318,1740123045092,-500.0,0.00014027,2]
[353904319,1740123045102,-1028.09,0.00014027,2]
[353904320,1740123045111,-500.0,0.00014027,2]
[353904321,1740123045121,-500.0,0.00014027,2]
[353904322,1740123045131,-500.0,0.00014027,2]
[353904323,1740123045140,-506.26753492,0.00014027,2]
[353904324,1740123045149,-500.0,0.00014027,2]
[353904325,1740123045161,-598.35,0.00014027,2]
[353904326,1740123045171,-500.0,0.00014027,2]
[353904327,1740123045180,-636.52,0.00014027,2]
[353904328,1740123045190,-500.0,0.00014027,2]
[353904329,1740123045199,-500.0,0.00014027,2]
[353904330,1740123045208,-500.0,0.00014027,2]
[353904331,1740123045218,-500.0,0.00014027,2]
[353904332,1740123045228,-500.0,0.00014027,2]
[353904333,1740123045237,-500.0,0.00014027,2]
[353904334,1740123045246,-500.0,0.00014027,2]
[353904335,1740123045257,-500.0,0.00014027,2]
[353904336,1740123045266,-680.57,0.00014027,2]
[353904337,1740123045277,-500.0,0.00014027,2]
[353904338,1740123045287,-522.54,0.00014027,2]
[353904339,1740123045297,-500.0,0.00014027,2]
[353904340,1740123045306,-643.16,0.00014027,2]
[353904341,1740123045316,-500.0,0.00014027,2]
[353904342,1740123045326,-219.05290424,0.00014027,2]
[353904343,1740123045335,-500.0,0.00014027,2]
[353904344,1740123045344,-500.0,0.00014027,2]
[353904345,1740123045354,-500.0,0.00014027,2]
[353904346,1740123045363,-500.0,0.00014027,2]
[353904347,1740123045373,-500.0,0.00014027,2]
[353904348,1740123045382,-500.0,0.00014027,2]
[353904349,1740123045392,-500.0,0.00014027,2]
[353904350,1740123045402,-500.0,0.00014027,2]
[353904351,1740123045412,-500.0,0.00014027,2]
[353904352,1740123045422,-500.0,0.00014027,2]
[353904353,1740123045431,-500.0,0.00014027,2]
[353904354,1740123045441,-500.0,0.00014027,2]
[353904355,1740123045451,-183.53862739,0.00014027,2]
[353904356,1740123045461,-500.0,0.00014027,2]
[353904357,1740123045470,-500.0,0.00014027,2]
[353904358,1740123045480,-500.0,0.00014027,2]
[353904359,1740123045490,-1131.1,0.00014027,2]
[353904360,1740123045500,-1943.31,0.00014027,2]
[353904361,1740123045510,-501.75,0.00014027,2]
[353904362,1740123045519,-1005.08,0.00014027,2]
[353904363,1740123045529,-4904.72,0.00014027,2]
[353904364,1740123045539,-802.29,0.00014027,2]
[353904365,1740123045548,-1274.61,0.00014027,2]
[353904366,1740123045558,-500.0,0.00014027,2]
[353904367,1740123045567,-2303.3,0.00014027,2]
[353904368,1740123045579,-10390.14,0.00014027,2]
[353904369,1740123045588,-500.0,0.00014027,2]
[353904370,1740123045598,-1449.0,0.00014027,2]
[353904371,1740123045611,-1002.18,0.00014027,2]
[353904372,1740123045620,-1288.56,0.00014027,2]
[353904373,1740123045630,-500.0,0.00014027,2]
[353904374,1740123045640,-2629.44,0.00014027,2]
[353904375,1740123045649,-604.05,0.00014027,2]
[353904376,1740123045658,-2170.77,0.00014027,2]
[353904377,1740123045668,-500.0,0.00014027,2]
[353904378,1740123045678,-500.0,0.00014027,2]
[353904379,1740123045688,-3793.39,0.00014027,2]
[353904380,1740123045697,-872.74,0.00014027,2]
[353904381,1740123045707,-19427.84,0.00014027,2]
[353904382,1740123045716,-500.0,0.00014027,2]
[353904383,1740123045726,-760.55,0.00014027,2]
[353904384,1740123045735,-993.79,0.00014027,2]
[353904385,1740123045745,-2007.46,0.00014027,2]
[353904386,1740123045754,-510.55,0.00014027,2]
[353904387,1740123045764,-682.97,0.00014027,2]
[353904388,1740123045777,-613.34,0.00014027,2]
[353904389,1740123045786,-500.0,0.00014027,2]
[353904390,1740123045796,-1212.87,0.00014027,2]
[353904391,1740123045805,-857.81,0.00014027,2]
[353904392,1740123045814,-500.0,0.00014027,2]
[353904393,1740123045824,-7942.52,0.00014027,2]
[353904394,1740123045833,-4070.84,0.00014027,2]
[353904395,1740123045842,-638.34,0.00014027,2]
[353904396,1740123045851,-1094.39,0.00014027,2]
[353904398,1740123045860,-1821.74,0.00014027,2]
[353904400,1740123045870,-609.12,0.00014027,2]
[353904402,1740123045880,-1203.19,0.00014027,2]
[353904404,1740123045890,-1363.52,0.00014027,2]
[353904406,1740123045904,-151.0,0.000141,2]
[353904408,1740123045916,-151.0,0.000141,2]
[353904410,1740123045927,-647.7,0.00014109,2]
[353904412,1740123045936,-500.0,0.00014109,2]
[353904414,1740123045947,-500.0,0.00014109,2]
[353904416,1740123045957,-500.0,0.00014109,2]
[353904418,1740123045967,-510.40146625,0.00014109,2]
[353904420,1740123045977,-1028.09,0.00014109,2]
[353904422,1740123045986,-500.0,0.00014109,2]
[353904424,1740123045996,-500.0,0.00014109,2]
[353904426,1740123046006,-500.0,0.00014109,2]
[353904427,1740123046015,-500.0,0.00014109,2]
[353904430,1740123046026,-500.0,0.00014109,2]
[353904432,1740123046036,-636.52,0.00014109,2]
[353904434,1740123046046,-500.0,0.00014109,2]
[353904436,1740123046055,-500.0,0.00014109,2]
[353904438,1740123046065,-500.0,0.00014109,2]
[353904441,1740123046074,-500.0,0.00014109,2]